Cogmind - Beta 14 *** ADVENTURER MODE // 2024.10.08 @ 12:07:20 // Winter2019/RPGLIKE Player: Gallgagger Result: Destroyed by Tracker with Linked Autogun Performance ------------- Evolutions (7) 3500 Regions Visited (21) 4200 Robots Destroyed (507) 2535 Value Destroyed (28261) 28261 Prototype IDs (126) 2520 Alien Tech Used (11) 2200 Bonus (30432) 30432 TOTAL SCORE: 73648 Bonus ------- Triggered Max Security 1000 High Alert Combat Kills 11013 Follower Combat Kills 4353 Network Hubs Disabled 200 Registered with UFD 300 Met Warlord at Base 500 MAIN.C Attacked Warlord 500 Warlord Defense Kills 130 Built Enhanced Grunts 300 A7 Reached Mainframe 300 Met R17 at Cetus 500 Used Core Reset Matrix 3000 Met R17 at Research 2000 Scanned by Researcher 1000 Pursued by Intercept 500 Integrated Exoskeleton 5000 Friendly Fire -164 Cogmind --------- Core Integrity 0/1450 Matter 415/425 Energy 415/415 System Corruption 6% Temperature Cool (0) Movement Walking (30) Location -3/Section 7 Parts ------- > --- POWER (1) -------- Neutrino Core > --- PROPULSION (3) --- Sigix Exoskeleton > --- UTILITY (3) ------ Improved Weapon Cycler Microwarp Drive > --- WEAPON (3) ------- Sigix Sheargun Sigix Sheargun Sigix Sheargun > --- INVENTORY (7) ---- Advanced System Restoration Module Amulet of Y3-NDR Sigix Broadsword Peak State ------------ > --- POWER ------------ Neutrino Core > --- PROPULSION ------- Sigix Exoskeleton > --- UTILITY ---------- Improved Weapon Cycler Microwarp Drive > --- WEAPON ----------- Sigix Sheargun Sigix Sheargun Sigix Sheargun > --- INVENTORY -------- Advanced System Restoration Module Amulet of Y3-NDR Sigix Broadsword Sapper Charge [Rating: 239] Favorites ----------- Power Makeshift Power Source Engine Makeshift Power Source Power Core Neutrino Core Propulsion Cooled VTOL Module Leg Arachnoskeleton Wheel Compact Wheel Flight Unit Cooled VTOL Module Utility Weapon Cycler Device Weapon Cycler Processor A0-MCA's Component Scanner Protection Improved Light Armor Plating Artifact Microwarp Drive Weapon Cooled Plasma Cannon Energy Gun Overtuned Beamcaster Energy Cannon Cooled Plasma Cannon Ballistic Gun Assault Rifle Launcher Rocket Launcher Special Weapon CPS Tube Slashing Weapon Chainsword Build | -11 -10 -10 -10 -8 -7 -7 -7 -7 -5 -5 -5 -5 -4 -4 -4 -4 -4 -4 -3 -3 -3 ------- Run | Yrd Mat Min Sub Mat Fac Sto Rec Scr Fac Upp Upp War Pro Fac Ext Cet Arc Hub Res Qua Sec Slots Evolved 17 | 4 1 . 1 3 . 1 . 2 2 . . . 1 . 1 . . . . . 1 Power 1 | 1 . . . . . . . . . . . . . . . . . . . . . Propulsion 5 | 1 1 . . 1 . . . . 1 . . . . . 1 . . . . . . Utility 7 | 1 . . . 2 . 1 . 1 1 . . . 1 . . . . . . . . Weapon 4 | 1 . . 1 . . . . 1 . . . . . . . . . . . . 1 Parts Attached 119 | 6 9 2 12 15 4 11 . 6 7 5 1 . 3 4 3 1 . 4 9 9 8 Power 16 | 2 . . 1 1 . 2 . . . 4 . . . . 2 . . 2 . 1 1 Engine 10 | 2 . . 1 1 . 2 . . . 3 . . . . 1 . . . . . . Core 6 | . . . . . . . . . . 1 . . . . 1 . . 2 . 1 1 Reactor . | . . . . . . . . . . . . . . . . . . . . . . Propulsion 33 | 2 5 . 4 6 3 3 . . 3 1 . . . 1 1 . . . 3 1 . Treads . | . . . . . . . . . . . . . . . . . . . . . . Leg 1 | . . . 1 . . . . . . . . . . . . . . . . . . Wheel 2 | 2 . . . . . . . . . . . . . . . . . . . . . Hover . | . . . . . . . . . . . . . . . . . . . . . . Flight 30 | . 5 . 3 6 3 3 . . 3 1 . . . 1 1 . . . 3 1 . Utility 28 | . 1 1 1 2 . 1 . 4 4 . 1 . 1 . . 1 . 1 3 1 6 Device 16 | . 1 1 1 2 . . . 1 4 . 1 . 1 . . . . 1 . . 3 Storage . | . . . . . . . . . . . . . . . . . . . . . . Processor 2 | . . . . . . . . 2 . . . . . . . . . . . . . Hackware . | . . . . . . . . . . . . . . . . . . . . . . Protection 8 | . . . . . . 1 . 1 . . . . . . . 1 . . 3 1 1 Artifact 2 | . . . . . . . . . . . . . . . . . . . . . 2 Weapon 42 | 2 3 1 6 6 1 5 . 2 . . . . 2 3 . . . 1 3 6 1 Energy Gun 11 | . 3 . . 3 1 2 . 1 . . . . . . . . . . . . 1 Energy Cannon 11 | . . 1 . 2 . 3 . . . . . . . . . . . . 3 2 . Ballistic Gun 3 | 2 . . 1 . . . . . . . . . . . . . . . . . . Ballistic Cannon . | . . . . . . . . . . . . . . . . . . . . . . Launcher 2 | . . . 2 . . . . . . . . . . . . . . . . . . Special Weapon 7 | . . . . . . . . 1 . . . . 1 2 . . . 1 . 2 . Impact Weapon . | . . . . . . . . . . . . . . . . . . . . . . Slashing Weapon 8 | . . . 3 1 . . . . . . . . 1 1 . . . . . 2 . Piercing Weapon . | . . . . . . . . . . . . . . . . . . . . . . Special Melee Weapon . | . . . . . . . . . . . . . . . . . . . . . . Unidentified Prototypes 13 | . . . 2 4 1 4 . . . . . . . . . . . . . 2 . Parts Lost 4 | . . . . . . . . . 1 . . . . . . . . . . 3 . Power . | . . . . . . . . . . . . . . . . . . . . . . Propulsion . | . . . . . . . . . . . . . . . . . . . . . . Utility 1 | . . . . . . . . . . . . . . . . . . . . 1 . Weapon 3 | . . . . . . . . . 1 . . . . . . . . . . 2 . Highest Loss Streak 1 | . . . . . . . . . 1 . . . . . . . . . . 1 . To Critical Strikes . | . . . . . . . . . . . . . . . . . . . . . . Average Slot Usage (%) 84 | . 84 96 89 85 87 87 88 86 84 85 85 85 85 86 84 82 82 84 82 78 75 Engine 9 | . 23 22 17 13 12 11 11 10 9 9 9 9 9 9 2 . . . . . . Core 2 | . . . . . . . . . . . . . . . 3 4 4 6 8 7 8 Leg 4 | . . . 3 6 6 5 5 5 4 4 4 4 4 4 4 4 4 4 4 4 5 Flight 23 | . 19 33 24 22 25 23 23 22 21 23 23 23 22 22 22 26 26 26 25 25 18 Device 18 | . 8 19 17 20 25 23 23 16 15 19 19 19 20 22 21 21 21 24 18 17 21 Processor 2 | . . . . . . . . 5 4 4 4 4 4 4 4 4 4 4 4 4 2 Protection 2 | . . . . . . 4 5 5 4 4 4 4 4 4 4 4 4 1 3 3 . Energy Gun 5 | . 12 14 8 6 6 5 5 5 4 4 4 4 4 4 4 4 4 4 . . 7 Energy Cannon 5 | . . 7 8 6 6 5 5 5 4 4 4 4 4 4 4 4 4 4 7 7 5 Special Weapon 1 | . . . . . . . . 1 . . . . . 2 4 4 4 3 4 1 . Slashing Weapon 5 | . . . 4 6 6 5 5 5 8 9 9 9 8 5 4 4 4 4 4 3 2 Peak Build Rating 239 | 6 11 14 42 66 71 80 78 95 110 112 114 115 119 119 124 130 130 136 138 150 239 Average Rating 93 | 4 9 13 30 55 69 77 78 81 99 110 113 114 116 118 120 129 130 133 131 127 163 On Entrance 88 | . 6 11 14 42 66 71 78 78 95 110 110 114 115 119 119 124 130 130 136 130 139 Naked Turns . | . . . . . . . . . . . . . . . . . . . . . . Heaviest Build 75 | 11 14 16 20 30 31 34 34 38 42 44 44 44 45 45 53 47 47 63 59 61 75 Greatest Support 80 | 32 37 17 60 60 34 65 35 65 70 48 47 47 47 48 70 55 55 70 70 70 80 Greatest Overweight (x) 2 | . 1 . . . . 1 . . . . . . . . 1 . . . 2 1 1 Average Overweight (x) . | . . . . . . . . . . . . . . . . . . . . . . Largest Inventory Capacity 7 | . 1 2 2 2 2 2 2 4 4 4 5 5 5 5 5 5 5 5 5 5 7 Average Capacity 3 | . . 1 2 2 2 2 2 2 4 4 4 5 5 5 5 5 5 5 5 5 5 Most Carried 6 | . 1 2 2 2 2 2 2 4 4 4 5 5 5 5 5 5 5 5 5 5 6 Average Carried 3 | . . 1 2 2 2 2 2 2 4 4 4 4 4 5 5 5 5 4 5 4 3 Final Capacity 7 | . 1 2 2 2 2 2 2 4 4 4 5 5 5 5 5 5 5 5 5 5 7 Final Carried 5 | . 1 2 2 2 2 2 2 4 4 4 5 5 5 5 5 5 5 5 5 2 4 Class Distribution -------------------- 29% | Wizard-Gladiator 20% | Wizard-Gunner 15% | Wizard-Mutant 13% | Scavenger-Mutant 8% | Mutant 4% | Commander-Gunner 4% | Scavenger-Gunner Dominant Class ---------------- Scavenger-Mutant | -10/Materials Scavenger-Mutant | -10/Mines Scavenger-Mutant | -10/Subcaves Mutant | -8/Materials Wizard-Mutant | -7/Factory Wizard-Mutant | -7/Storage Wizard-Mutant | -7/Recycling Wizard-Mutant | -7/Scraptown Wizard-Gladiator | -5/Factory Wizard-Gladiator | -5/Upper Caves Wizard-Gladiator | -5/Upper Caves Wizard-Gladiator | -5/Warlord Wizard-Gladiator | -4/Proximity Caves Wizard-Gunner | -4/Factory Wizard-Gunner | -4/Extension Commander-Gunner | -4/Cetus Commander-Gunner | -4/Archives Wizard-Gunner | -4/Hub_04(d) Wizard-Gunner | -3/Research Wizard-Mutant | -3/Quarantine Wizard-Gladiator | -3/Section 7 Resources | -11 -10 -10 -10 -8 -7 -7 -7 -7 -5 -5 -5 -5 -4 -4 -4 -4 -4 -4 -3 -3 -3 ----------- Run | Yrd Mat Min Sub Mat Fac Sto Rec Scr Fac Upp Upp War Pro Fac Ext Cet Arc Hub Res Qua Sec Matter Collected 2193 | 260 204 11 388 209 40 110 . 20 106 106 18 . 30 63 35 16 . 40 90 94 353 Remotely . | . . . . . . . . . . . . . . . . . . . . . . Salvage Created 25024 | . 667 115 251 781 382 1447 174 . 2711 514 554 107 327 1607 2207 366 145 1184 750 3491 7244 Parts 992 | . 43 12 13 56 28 70 4 . 121 15 19 3 20 72 64 13 5 44 38 171 181 Haulers Intercepted 11 | . 1 . . 1 1 6 . . 1 . . . . . . . . . 1 . . Recyclers Shooed 5 | . . . . 1 1 1 . . 1 . . . . . 1 . . . . . . Parts Field Recycled . | . . . . . . . . . . . . . . . . . . . . . . Retrieved Matter . | . . . . . . . . . . . . . . . . . . . . . . Parts Self-Destructed 86 | . . . 21 . . . . . . 16 21 . 28 . . . . . . . . Prevented 13 | . . . . . . . . . . . 6 . 7 . . . . . . . . Kills | -11 -10 -10 -10 -8 -7 -7 -7 -7 -5 -5 -5 -5 -4 -4 -4 -4 -4 -4 -3 -3 -3 ------- Run | Yrd Mat Min Sub Mat Fac Sto Rec Scr Fac Upp Upp War Pro Fac Ext Cet Arc Hub Res Qua Sec Combat Hostiles Destroyed 437 | . 19 9 8 19 6 26 4 . 52 11 12 2 10 37 26 6 2 23 18 49 98 Melee 1 | . . . . . . . . . . . . . . . . . . . . . 1 Guns 192 | . 19 8 2 10 2 14 1 . 23 5 5 . 7 16 10 2 . 7 1 . 60 Cannons 197 | . . 1 5 9 4 10 3 . 23 4 4 2 3 13 11 2 2 11 15 46 29 AOE 8 | . . . 1 . . . . . 2 . 2 . . 3 . . . . . . . Classes Destroyed 29 | . 4 1 2 1 2 2 . . 5 . . 1 1 1 3 . . . 2 2 2 Worker 7 | . . . . . . 3 . . 1 . . . . . . . . . . . 3 Builder 2 | . . . . . 1 . . . . . . . . . . . . . . 1 . Hauler 11 | . 1 . . 1 1 6 . . 1 . . . . . . . . . 1 . . Recycler 6 | . . . . . . . . . . . . . . . 2 . . . 1 2 1 Carrier 1 | . . . . . . . . . . . . . . . . . . . . 1 . Mechanic 3 | . . . . . . . . . 2 . . . . . . . . . . . 1 Operator 5 | . . . . . 1 1 . . 1 . . . . . . . . . . . 2 Drone 3 | . . . . . . . . . . . . . 2 . . . . . . 1 . Turret 2 | . . . 2 . . . . . . . . . . . . . . . . . . Watcher 30 | . 3 . . 4 2 2 . . 4 . . . . 3 2 2 . 1 . 2 5 Swarmer 65 | . 6 3 4 3 . 3 . . 4 4 1 . 1 9 3 . . 1 9 5 9 Cutter 2 | . . . . . . . . . . . . . . 1 . . . . . . 1 Saboteur 6 | . . . . . . . . . . . . 1 . . . . . 2 . 1 2 Grunt 176 | . 13 4 3 9 3 14 . . 25 6 8 1 4 16 8 . . 6 3 15 38 Brawler 17 | . . . . . . . . . 1 . 1 . . 1 . . . 2 . 3 9 Duelist 17 | . . . . . . . . . 5 . . . . . . . . 1 . 1 10 Protector 10 | . . . . . . . . . 2 . . . . . . . . 1 . 1 6 Researcher 9 | . . . . . . . . . . . . . . . . . . . . 3 6 Sentry 57 | . . . 1 5 3 6 4 . 3 1 2 . 1 6 11 . 2 3 2 4 3 Demolisher 1 | . . . . . . . . . . . . . . . . . . . 1 . . Specialist 5 | . . . . . . . . . . . . . . . 1 . . 1 . 3 . Hunter 19 | . . . . 2 . 2 . . 2 . . . . . 1 . . 1 . 8 3 Programmer 34 | . . . . . . 1 . . 8 . . . 2 4 . . . 3 1 7 8 Heavy 2 | . . . . . . . . . 2 . . . . . . . . . . . . Behemoth 3 | . . . . . . . . . . . . . . . 2 . . . 1 . . Cetus Guard 6 | . . . . . . . . . . . . . . . . 6 . . . . . S7 Guard 1 | . . . . . . . . . . . . . . . . . . . . . 1 Lightning 2 | . . . . . . . . . . . . . . . . . . 2 . . . Investigator 2 | . . . . . . . . . . . . . . . . . . . . . 2 Striker 5 | . . . . . . . . . . . . . . . . . . . 1 . 4 Executioner 2 | . . . . . . . . . . . . . . . . . . . . . 2 Alpha 7 2 | . . . . . . . . . . . . . . . . . . . . . 2 Assembled 2 | . . 2 . . . . . . . . . . . . . . . . . . . Best Kill Streak 28 | . 6 3 3 3 4 9 1 . 7 5 7 2 3 13 7 4 2 4 3 7 28 Combat Bots Only 26 | . 3 3 2 3 2 6 1 . 6 5 7 2 3 12 7 3 2 4 3 7 26 Max Kills in Single Turn 4 | . 1 1 1 1 1 2 1 . 3 1 3 1 1 4 2 1 1 1 2 2 3 Gunslinging 1 | . . . . . . . . . . . . . . . . . . . . . 1 Exploded 3 | . . . 1 . . . . . 2 . 2 . . 3 . . . . . . . Melee 1 | . . . . . . . . . . . . . . . . . . . . . 1 Uniques/NPCs Destroyed . | . . . . . . . . . . . . . . . . . . . . . . Combat | -11 -10 -10 -10 -8 -7 -7 -7 -7 -5 -5 -5 -5 -4 -4 -4 -4 -4 -4 -3 -3 -3 -------- Run | Yrd Mat Min Sub Mat Fac Sto Rec Scr Fac Upp Upp War Pro Fac Ext Cet Arc Hub Res Qua Sec Hostile Shots Fired 2041 | . 60 25 47 61 45 108 45 . 173 19 38 20 47 105 100 38 6 98 68 463 475 Missed 905 | . 16 12 29 34 22 69 18 . 58 5 24 9 27 46 51 15 1 37 37 211 184 Damage Taken 14535 | . 364 147 114 338 199 314 161 . 2172 193 275 146 345 1192 735 321 75 802 604 3285 2753 Core 10816 | . 290 125 92 284 153 238 111 . 1596 138 200 102 257 846 524 231 58 606 401 2335 2229 Absorbed by Shields 319 | . . . . . . . . . . . . . . . 96 104 8 . . 25 86 Redirected to Core 9097 | . 230 74 73 172 145 197 86 . 1418 123 178 102 213 731 483 201 58 542 372 1820 1879 Ignored by Resistances 9484 | . 115 44 35 95 61 95 56 . 598 53 77 40 96 338 359 199 40 986 306 2231 3660 Regen/Repaired (Parts) 232 | . . . . . . . . . . . . . . . . . . . . . 232 Core Remaining (%) 96 | 100 . . 96 100 . . . 100 . . . . 91 . . . . 89 . . . Volleys Fired 1276 | . 50 21 66 65 27 58 9 . 152 21 22 4 25 101 111 35 8 91 47 161 202 Largest 3 | . 2 2 3 2 2 2 2 . 2 2 2 2 2 3 2 2 2 3 2 3 3 Hottest 300 | . 115 125 153 125 145 145 115 . 205 135 135 135 135 135 135 135 135 135 213 148 300 Shots Fired 2465 | . 99 42 83 128 48 113 18 . 295 42 44 8 49 182 193 65 16 177 94 319 450 Gun 1141 | . 99 36 46 63 21 55 9 . 152 21 22 4 25 100 109 35 8 90 6 . 240 Cannon 1303 | . . 6 19 65 27 58 9 . 143 21 22 4 24 81 84 30 8 86 88 318 210 Launcher 18 | . . . 18 . . . . . . . . . . . . . . . . . . Special 3 | . . . . . . . . . . . . . . 1 . . . 1 . 1 . Kinetic 76 | . 46 . 30 . . . . . . . . . . . . . . . . . . Thermal 2128 | . 53 42 35 128 48 113 18 . 295 42 44 8 49 181 193 65 16 176 94 318 210 Explosive 18 | . . . 18 . . . . . . . . . . . . . . . . . . Electromagnetic . | . . . . . . . . . . . . . . . . . . . . . . Slashing 240 | . . . . . . . . . . . . . . . . . . . . . 240 Robot Hit Streak 69 | . 16 10 16 28 38 26 27 . 34 28 24 32 43 42 33 27 34 31 40 66 69 Robot Miss Streak 4 | . 2 4 2 4 2 2 1 . 2 1 1 . 2 2 3 2 1 2 1 2 2 Penetration Max 1 | . . . . . . . . . . . . . . . . . . . . . 1 Secondary Targets 23 | . . . . . . . . . . . . . . . . . . . . . 23 Max Gunslinging Chain 2 | . . . . . . . . . . . . . . . . . . . . . 2 Shots Hit Robots 2003 | . 78 24 28 104 39 89 18 . 244 35 36 8 38 138 164 55 14 148 77 279 387 Core Hits 903 | . 34 14 14 42 23 89 13 . 105 15 23 3 17 61 57 15 6 49 29 111 183 Critical Kills 25 | . 1 . . . . 1 . . 1 1 1 . . 2 1 1 . 2 2 3 9 Critical Parts Destroyed 1 | . 1 . . . . . . . . . . . . . . . . . . . . Critical Strikes 139 | . 4 4 1 2 . 2 . . 22 5 5 1 3 28 21 8 1 11 4 3 14 Burn 106 | . 2 4 1 2 . . . . 20 4 4 1 3 26 20 7 1 9 2 . . Meltdown 24 | . . . . . . 1 . . 1 1 1 . . 2 1 1 . 2 2 3 9 Destroy 2 | . 2 . . . . . . . . . . . . . . . . . . . . Sever 7 | . . . . . . 1 . . 1 . . . . . . . . . . . 5 Melee Attacks 77 | . . . 30 1 1 4 1 . 4 . . . 1 . . 13 . 2 . 1 19 Impact . | . . . . . . . . . . . . . . . . . . . . . . Slashing 77 | . . . 30 1 1 4 1 . 4 . . . 1 . . 13 . 2 . 1 19 Piercing . | . . . . . . . . . . . . . . . . . . . . . . Sneak Attacks 9 | . . . . 1 . 1 1 . . . . . . . . . . . . . 6 Combat Hostiles 1 | . . . . . . . 1 . . . . . . . . . . . . . . Follow-up Attacks . | . . . . . . . . . . . . . . . . . . . . . . Damage Inflicted 84028 | . 1037 368 598 2175 1052 2717 599 . 9483 1262 1504 291 1394 5810 5846 1907 463 5194 3251 11305 27772 Guns 40508 | . 1037 315 253 966 564 1525 273 . 4664 641 703 140 822 2789 3294 1114 251 2545 186 . 18426 Cannons 39705 | . . 53 217 1144 488 1092 261 . 4284 621 576 151 572 2117 2552 793 212 2602 3065 11225 7680 Explosions 1681 | . . . 128 . . . . . 424 . 225 . . 904 . . . . . . . Melee 2134 | . . . . 65 . 100 65 . 111 . . . . . . . . 47 . 80 1666 Ramming . | . . . . . . . . . . . . . . . . . . . . . . Kinetic 425 | . 402 . 23 . . . . . . . . . . . . . . . . . . Thermal 62011 | . 635 368 447 2110 1052 2617 534 . 9372 1262 1504 291 1394 4906 5846 1907 463 5147 3251 11225 7680 Explosive 1032 | . . . 128 . . . . . . . . . . 904 . . . . . . . Electromagnetic . | . . . . . . . . . . . . . . . . . . . . . . Impact . | . . . . . . . . . . . . . . . . . . . . . . Slashing 20560 | . . . . 65 . 100 65 . 111 . . . . . . . . 47 . 80 20092 Piercing . | . . . . . . . . . . . . . . . . . . . . . . Highest Corruption 6 | . . . . . . . . . 2 2 2 2 . 1 1 1 1 2 1 4 6 Average Corruption 1 | . . . . . . . . . 1 2 2 2 . 1 1 1 1 1 1 3 3 Corruption Purged . | . . . . . . . . . . . . . . . . . . . . . . Corruption Blocked . | . . . . . . . . . . . . . . . . . . . . . . Effects 77 | . . . . . . . . . 9 9 7 . . 6 7 1 2 2 5 10 19 Message Errors 12 | . . . . . . . . . 2 . 3 . . 1 . . . . . 2 4 Matter Fused 22 | . . . . . . . . . 2 4 1 . . 3 2 . . . . 2 8 Heat Flow Errors 13 | . . . . . . . . . 2 2 1 . . . 1 . 2 1 2 . 2 Energy Discharges 9 | . . . . . . . . . 2 2 . . . . 2 . . . 1 2 . Parts Rejected 2 | . . . . . . . . . 1 . . . . . 1 . . . . . . Data Loss (minor) 9 | . . . . . . . . . . 1 1 . . 1 1 1 . 1 . 1 2 Data Loss (major) 4 | . . . . . . . . . . . . . . . . . . . 2 1 1 Alerts 2 | . . . . . . . . . . . 1 . . . . . . . . 1 . Weapon Failures 4 | . . . . . . . . . . . . . . 1 . . . . . 1 2 Overload Shots 10 | . . . . . . 2 . . 4 . . . . . 2 . . 1 . . 1 Effects 1 | . . . . . . . . . . . . . . . . . . 1 . . . Energy Bleed 1 | . . . . . . . . . . . . . . . . . . 1 . . . Overflow Damage 1576 | . . . . 43 2 1 . . 89 56 26 . . 81 16 30 . 99 165 300 668 Projectiles 1040 | . . . . 3 2 1 . . 89 56 26 . . 39 16 30 . 99 165 300 214 Explosions 42 | . . . . . . . . . . . . . . 42 . . . . . . . Melee 494 | . . . . 40 . . . . . . . . . . . . . . . . 454 Knockbacks . | . . . . . . . . . . . . . . . . . . . . . . Impact . | . . . . . . . . . . . . . . . . . . . . . . Kinetic . | . . . . . . . . . . . . . . . . . . . . . . Secondary . | . . . . . . . . . . . . . . . . . . . . . . Self-Inflicted Damage 21 | . . . . . . . . . 21 . . . . . . . . . . . . Shots 1 | . . . . . . . . . 1 . . . . . . . . . . . . Rammed . | . . . . . . . . . . . . . . . . . . . . . . Targets Rammed . | . . . . . . . . . . . . . . . . . . . . . . Kicked . | . . . . . . . . . . . . . . . . . . . . . . Crushed . | . . . . . . . . . . . . . . . . . . . . . . Highest Temperature 444 | . 168 192 15 444 . 25 . . 246 317 148 . 40 92 126 66 188 137 127 . 112 Average Temperature 65 | . 43 67 6 115 . 12 . . 77 75 105 . 32 41 49 40 52 43 60 . 46 Received Heat Transfer 4136 | . 222 94 45 222 114 168 72 . 749 118 63 87 45 244 140 22 . 247 39 905 540 Effects 3 | . . . . 3 . . . . . . . . . . . . . . . . . Shutdowns 1 | . . . . 1 . . . . . . . . . . . . . . . . . Energy Bleed 1 | . . . . 1 . . . . . . . . . . . . . . . . . Damage (minor) 1 | . . . . 1 . . . . . . . . . . . . . . . . . Siege Activations . | . . . . . . . . . . . . . . . . . . . . . . Robots Corrupted . | . . . . . . . . . . . . . . . . . . . . . . Combat Hostiles . | . . . . . . . . . . . . . . . . . . . . . . Parts Fried 1 | . . . . . . . . . . . . . 1 . . . . . . . . Impact Corruptions . | . . . . . . . . . . . . . . . . . . . . . . Robots Melted 43 | . . . . . . 2 . . 5 2 1 . . 5 7 2 . 5 2 3 9 Combat Hostiles 39 | . . . . . . 2 . . 4 2 1 . . 5 5 2 . 5 2 3 8 Parts Melted 297 | . 8 1 . 6 3 14 3 . 53 4 8 1 3 42 40 13 1 24 14 14 45 Heat Transferred 90603 | . 1702 1184 1036 3996 1902 4992 1025 . 13733 2150 2600 500 2200 9450 10650 3500 800 7631 3721 10265 7566 Parts Sabotaged . | . . . . . . . . . . . . . . . . . . . . . . Parts Stolen . | . . . . . . . . . . . . . . . . . . . . . . Parts Stripped . | . . . . . . . . . . . . . . . . . . . . . . Power Chain Reactions . | . . . . . . . . . . . . . . . . . . . . . . Alert | -11 -10 -10 -10 -8 -7 -7 -7 -7 -5 -5 -5 -5 -4 -4 -4 -4 -4 -4 -3 -3 -3 ------- Run | Yrd Mat Min Sub Mat Fac Sto Rec Scr Fac Upp Upp War Pro Fac Ext Cet Arc Hub Res Qua Sec Peak Influence 3241 | . 491 370 . 631 374 605 350 . 1114 . . . . 1719 1030 660 355 1656 1018 1524 3241 Initial 753 | . . 161 . 18 167 67 199 . . . . . . 132 726 404 222 103 753 477 742 Average 602 | . 200 249 . 342 246 386 196 . 345 . . . . 709 768 546 342 1093 875 1150 1067 Maximum Alert Level 5 | . 2 1 . 2 1 2 1 . 4 . . . . 5 3 2 1 5 3 4 5 Low Security (%) 23 | 100 54 43 . 22 44 13 43 . 56 . . . . 14 . . . 8 . . 2 Level 1 20 | . 34 56 . 28 55 31 56 . 7 . . . . 15 4 1 100 12 . . 25 Level 2 20 | . 11 . . 48 . 54 . . 13 . . . . 32 32 98 . 3 2 15 16 Level 3 22 | . . . . . . . . . 22 . . . . 13 62 . . 12 97 20 28 Level 4 8 | . . . . . . . . . . . . . . 22 . . . 55 . 64 . Level 5 . | . . . . . . . . . . . . . . 2 . . . 6 . . . High Security . | . . . . . . . . . . . . . . . . . . . . . . Max Security 3 | . . . . . . . . . . . . . . . . . . . . . 27 Squads Dispatched 130 | . 5 1 . 5 4 10 . . 12 . . . . 13 2 . . 15 5 17 41 Investigation 19 | . 5 1 . 4 . 2 . . 1 . . . . 2 1 . . 2 1 . . Extermination 11 | . . . . . . 1 . . 2 . . . . 2 . . . 2 . 2 2 Reinforcement 31 | . . . . 1 1 4 . . 3 . . . . 3 . . . 4 4 6 5 Assault 45 | . . . . . . . . . 3 . . . . . 1 . . 5 . 5 31 Garrison 21 | . . . . . 3 3 . . 3 . . . . 6 . . . 2 . 4 . Intercept 3 | . . . . . . . . . . . . . . . . . . . . . 3 Searches Triggered . | . . . . . . . . . . . . . . . . . . . . . . Construction Impeded 1 | . . . . . . . . . . . . . . . . . . . . 1 . Haulers Reinforced 7 | . . . . . 1 3 . . . . . . . 1 . . . . . 2 . Active Scanning Responses . | . . . . . . . . . . . . . . . . . . . . . . Cargo Convoy Interrupts 1 | . . . . . . . . . 1 . . . . . . . . . . . . Stealth | -11 -10 -10 -10 -8 -7 -7 -7 -7 -5 -5 -5 -5 -4 -4 -4 -4 -4 -4 -3 -3 -3 --------- Run | Yrd Mat Min Sub Mat Fac Sto Rec Scr Fac Upp Upp War Pro Fac Ext Cet Arc Hub Res Qua Sec Distress Signals 24 | . 1 . . 1 . 2 . . 3 . . . . 2 2 2 . 2 7 . 2 Communications Jammed . | . . . . . . . . . . . . . . . . . . . . . . Distress Signals . | . . . . . . . . . . . . . . . . . . . . . . Times Spotted 825 | . 28 9 20 35 11 32 3 . 102 13 19 11 22 71 38 12 4 61 32 76 226 Peak Tracking Total 66 | . 5 3 3 4 2 4 1 . 11 5 11 11 13 11 8 5 2 10 5 8 66 Tactical Retreats 40 | . 3 . 3 2 . 1 . . 10 1 . . 3 3 . . . 2 1 3 8 Traps | -11 -10 -10 -10 -8 -7 -7 -7 -7 -5 -5 -5 -5 -4 -4 -4 -4 -4 -4 -3 -3 -3 ------- Run | Yrd Mat Min Sub Mat Fac Sto Rec Scr Fac Upp Upp War Pro Fac Ext Cet Arc Hub Res Qua Sec Traps Triggered 22 | . 1 . . 1 . 4 . . 3 . . . . . 5 . . 1 5 1 1 Indirectly . | . . . . . . . . . . . . . . . . . . . . . . Trap Hack Attempts . | . . . . . . . . . . . . . . . . . . . . . . Triggered . | . . . . . . . . . . . . . . . . . . . . . . Disarmed . | . . . . . . . . . . . . . . . . . . . . . . Reprogrammed . | . . . . . . . . . . . . . . . . . . . . . . Reused . | . . . . . . . . . . . . . . . . . . . . . . Traps Extracted . | . . . . . . . . . . . . . . . . . . . . . . Installed . | . . . . . . . . . . . . . . . . . . . . . . Triggered 8 | . . . . . . . . . 3 . . 5 . . . . . . . . . Machines | -11 -10 -10 -10 -8 -7 -7 -7 -7 -5 -5 -5 -5 -4 -4 -4 -4 -4 -4 -3 -3 -3 ---------- Run | Yrd Mat Min Sub Mat Fac Sto Rec Scr Fac Upp Upp War Pro Fac Ext Cet Arc Hub Res Qua Sec Machines Disabled 88 | . . 1 2 1 . 6 . . 9 . 5 . 3 22 3 . 2 18 2 4 10 Max in Single Turn 6 | . . 1 1 . . 1 . . 4 . 4 . 1 6 1 . 1 1 1 1 1 Garrison Access 4 | . . . . . . . . . 1 . . . . . . . . 2 . 1 . Network Hub 1 | . . . . . . . . . . . . . . . . . . 1 . . . Machines Repaired . | . . . . . . . . . . . . . . . . . . . . . . Machines Dismantled . | . . . . . . . . . . . . . . . . . . . . . . Machines Sabotaged . | . . . . . . . . . . . . . . . . . . . . . . Overloaded Fab Kills . | . . . . . . . . . . . . . . . . . . . . . . Hacking | -11 -10 -10 -10 -8 -7 -7 -7 -7 -5 -5 -5 -5 -4 -4 -4 -4 -4 -4 -3 -3 -3 --------- Run | Yrd Mat Min Sub Mat Fac Sto Rec Scr Fac Upp Upp War Pro Fac Ext Cet Arc Hub Res Qua Sec Machines Accessed 89 | . 7 1 2 10 1 10 15 2 12 . 2 2 . 4 8 3 . 3 1 . 6 Terminals 57 | . 5 1 . 7 1 8 6 . 8 . 1 . . 2 8 3 . 2 . . 5 Fabricators 5 | . . . . . . . . . 3 . . . . 1 . . . . 1 . . Repair Stations 1 | . . . . . . . . . . . . . . . . . . . . . 1 Recycling Units 14 | . 2 . . 2 . 1 9 . . . . . . . . . . . . . . Scanalyzers . | . . . . . . . . . . . . . . . . . . . . . . Garrison Access 5 | . . . . 1 . 1 . . 1 . . . . 1 . . . 1 . . . Total Hacks 253 | . 21 1 4 19 3 21 32 13 50 . 5 2 . 13 26 9 . 11 2 . 21 Successful 184 | . 14 1 4 11 2 15 26 13 35 . 5 2 . 8 17 9 . 5 1 . 16 Failed 69 | . 7 . . 8 1 6 6 . 15 . . . . 5 9 . . 6 1 . 5 Catastrophic 9 | . . . . 3 . 1 . . 1 . . . . . 1 . . 1 . . 2 Database Lockouts . | . . . . . . . . . . . . . . . . . . . . . . Manual 153 | . 20 1 . 12 3 15 22 . 36 . . . . 8 13 1 . 11 2 . 9 Terminals 195 | . 18 1 . 16 3 17 23 . 40 . 4 . . 8 26 9 . 10 . . 20 Fabricators 15 | . . . . . . . . . 9 . . . . 4 . . . . 2 . . Repair Stations 1 | . . . . . . . . . . . . . . . . . . . . . 1 Recycling Units 15 | . 3 . . 2 . 1 9 . . . . . . . . . . . . . . Scanalyzers . | . . . . . . . . . . . . . . . . . . . . . . Garrison Access 7 | . . . . 1 . 3 . . 1 . . . . 1 . . . 1 . . . Terminal Hacks 107 | . 6 . 4 6 1 8 12 13 16 . 5 2 . 1 12 9 . 2 . . 10 Record 31 | . . . 3 . . 1 . 13 . . 5 . . . 1 8 . . . . . Part Schematic 1 | . . . . . . 1 . . . . . . . . . . . . . . . Robot Analysis 16 | . 5 . . 1 . . 4 . 3 . . . . . 1 . . . . . 2 Prototype ID Bank 3 | . . . . 1 . . 2 . . . . . . . . . . . . . . Open Door 12 | . . . . . . 3 . . . . . 2 . . 5 1 . . . . 1 Level Access Points 1 | . . . . . . . 1 . . . . . . . . . . . . . . Branch Access Points 3 | . . . . 1 1 . . . 1 . . . . . . . . . . . . Terminal Index 2 | . . . . . . . . . 1 . . . . . . . . 1 . . . Alert Level 10 | . 1 . . 1 . 1 2 . 2 . . . . . 1 . . 1 . . 1 Unreport Threat 23 | . . . . 2 . 2 2 . 8 . . . . . 4 . . . . . 5 Locate Traps 2 | . . . . . . . . . 1 . . . . 1 . . . . . . . Zone Layout 1 | . . . . . . . 1 . . . . . . . . . . . . . . Derelict Proto ID Bank 1 | . . . 1 . . . . . . . . . . . . . . . . . . Activate Exoskeleton 1 | . . . . . . . . . . . . . . . . . . . . . 1 Fabricator Hacks 2 | . . . . . . . . . 1 . . . . 1 . . . . . . . Build 2 | . . . . . . . . . 1 . . . . 1 . . . . . . . Repair Station Hacks 1 | . . . . . . . . . . . . . . . . . . . . . 1 Scan Component 1 | . . . . . . . . . . . . . . . . . . . . . 1 Recycling Unit Hacks . | . . . . . . . . . . . . . . . . . . . . . . Scanalyzer . | . . . . . . . . . . . . . . . . . . . . . . Garrison Access Hacks 1 | . . . . 1 . . . . . . . . . . . . . . . . . Unlock Access 1 | . . . . 1 . . . . . . . . . . . . . . . . . Unauthorized Hacks 72 | . 8 1 . 4 1 7 14 . 18 . . . . 6 5 . . 3 1 . 4 Terminals 44 | . 6 1 . 2 1 5 5 . 10 . . . . 3 5 . . 2 . . 4 Botnet 35 | . 5 . . 2 1 5 5 . 6 . . . . 3 3 . . 2 . . 3 Disrupt 6 | . . . . . . . . . 3 . . . . . 2 . . . . . 1 Skim 1 | . . . . . . . . . 1 . . . . . . . . . . . . Search 2 | . 1 1 . . . . . . . . . . . . . . . . . . . Fabricators 10 | . . . . . . . . . 7 . . . . 2 . . . . 1 . . Prioritize 3 | . . . . . . . . . 2 . . . . 1 . . . . . . . Liberate 5 | . . . . . . . . . 3 . . . . 1 . . . . 1 . . Fabnet 2 | . . . . . . . . . 2 . . . . . . . . . . . . Repair Stations . | . . . . . . . . . . . . . . . . . . . . . . Recycling Units 14 | . 2 . . 2 . 1 9 . . . . . . . . . . . . . . Tunnel 14 | . 2 . . 2 . 1 9 . . . . . . . . . . . . . . Scanalyzers . | . . . . . . . . . . . . . . . . . . . . . . Garrison Access 4 | . . . . . . 1 . . 1 . . . . 1 . . . 1 . . . Reprogram 4 | . . . . . . 1 . . 1 . . . . 1 . . . 1 . . . Data Cores Recovered 4 | . . . . . 1 1 . . 1 . . . . . . . . . . . 1 Used 1 | . . . . . . . . . 1 . . . . . . . . . . . . Hacking Detections 42 | . 2 . . 5 1 4 4 . 9 . . . . 4 5 1 . 3 1 . 3 Full Trace Events 2 | . 1 . . 1 . . . . . . . . . . . . . . . . . Feedback Events . | . . . . . . . . . . . . . . . . . . . . . . Feedback Blocked . | . . . . . . . . . . . . . . . . . . . . . . Robot Schematics Acquired 6 | . . . . . . . . . . . . . . . . . . . . 2 4 Robots Built 2 | . . . . . . . . . 2 . . . . . . . . . . . . Authchips . | . . . . . . . . . . . . . . . . . . . . . . Time 76 | . . . . . . . . . 76 . . . . . . . . . . . . Total Robot Build Rating 10 | . . . . . . . . . 10 . . . . . . . . . . . . Part Schematics Acquired 29 | . . . . . . 1 . . . . . . . . . . . . . 11 17 Parts Built 1 | . . . . . . . . . . . . . . 1 . . . . . . . Authchips . | . . . . . . . . . . . . . . . . . . . . . . Time 111 | . . . . . . . . . . . . . . 111 . . . . . . . Total Part Build Rating 9 | . . . . . . . . . . . . . . 9 . . . . . . . Parts Repaired . | . . . . . . . . . . . . . . . . . . . . . . Time . | . . . . . . . . . . . . . . . . . . . . . . Parts Recycled . | . . . . . . . . . . . . . . . . . . . . . . Recycled Matter . | . . . . . . . . . . . . . . . . . . . . . . Retrieved Matter . | . . . . . . . . . . . . . . . . . . . . . . Retrieved Components . | . . . . . . . . . . . . . . . . . . . . . . Parts Scanalyzed . | . . . . . . . . . . . . . . . . . . . . . . Part Schematics Acquired . | . . . . . . . . . . . . . . . . . . . . . . Parts Damaged . | . . . . . . . . . . . . . . . . . . . . . . Bothacking | -11 -10 -10 -10 -8 -7 -7 -7 -7 -5 -5 -5 -5 -4 -4 -4 -4 -4 -4 -3 -3 -3 ------------ Run | Yrd Mat Min Sub Mat Fac Sto Rec Scr Fac Upp Upp War Pro Fac Ext Cet Arc Hub Res Qua Sec Used RIF Installer . | . . . . . . . . . . . . . . . . . . . . . . Robots Hacked 12 | . . . . . . . . . . . . . . 4 1 . . 5 1 . 1 Non-combat . | . . . . . . . . . . . . . . . . . . . . . . Combat 12 | . . . . . . . . . . . . . . 4 1 . . 5 1 . 1 Robot Hacks Applied . | . . . . . . . . . . . . . . . . . . . . . . Relay Couplers Released 1 | . . . . . . . . . . . . . . . . . . 1 . . . Machine Destruction 1 | . . . . . . . . . . . . . . . . . . 1 . . . Fabnet Peak Effective % 6 | . . . . . . . . . . . . . 6 6 6 6 6 6 2 2 2 Autooverrided 12 | . . . . . . . . . . . . . . 4 1 . . 5 1 . 1 Robots Rewired 29 | . . . . . . . . . 1 . . 5 . . 23 . . . . . . Allies Hacked 1 | . . . . . . . . . 1 . . . . . . . . . . . . Hacks Repelled . | . . . . . . . . . . . . . . . . . . . . . . Allies | -11 -10 -10 -10 -8 -7 -7 -7 -7 -5 -5 -5 -5 -4 -4 -4 -4 -4 -4 -3 -3 -3 -------- Run | Yrd Mat Min Sub Mat Fac Sto Rec Scr Fac Upp Upp War Pro Fac Ext Cet Arc Hub Res Qua Sec Total Allies 116 | . . 3 16 . . 1 . . 8 . 7 5 6 16 34 5 . 6 8 . 1 Largest Group 30 | . . 3 16 16 5 1 . . 5 . 4 9 4 6 29 30 30 29 5 . 1 Highest-Rated Group 1602 | . . 40 287 287 78 32 . . 169 . 324 634 324 343 1279 1602 1602 1386 388 . 42 Highest-Rated Ally 159 | . . 16 19 19 19 32 . . 49 . 81 81 81 81 159 159 159 96 81 . 42 Total Orders 7 | . . . 2 4 . . . . 1 . . . . . . . . . . . . STAY 5 | . . . 1 3 . . . . 1 . . . . . . . . . . . . FOLLOW 2 | . . . 1 1 . . . . . . . . . . . . . . . . . Ally Attacks 671 | . . . 9 101 17 5 . . 26 . 28 13 21 105 59 35 24 173 53 . 2 Total Damage 21748 | . . . 116 1209 196 110 . . 865 . 1110 562 1214 5071 1726 1010 830 6243 1410 . 76 Kills 129 | . . . . 19 2 . . . 4 . 9 5 9 26 8 2 2 33 10 . . Allies Corrupted 13 | . . . . 3 . . . . 2 . . . . . . . . 8 . . . Allies Melted 1 | . . . . . . . . . . . . . . . . . . 1 . . . Intel | -11 -10 -10 -10 -8 -7 -7 -7 -7 -5 -5 -5 -5 -4 -4 -4 -4 -4 -4 -3 -3 -3 ------- Run | Yrd Mat Min Sub Mat Fac Sto Rec Scr Fac Upp Upp War Pro Fac Ext Cet Arc Hub Res Qua Sec Robot Analysis Total 16 | . 5 . . 1 . . 4 . 3 . . . . . 1 . . . . . 2 Derelict Logs Recovered 6 | . . 1 1 . . . . . . 1 2 . 1 . . . . . . . . Drone Launches . | . . . . . . . . . . . . . . . . . . . . . . Drone Recoveries . | . . . . . . . . . . . . . . . . . . . . . . Exploration | -11 -10 -10 -10 -8 -7 -7 -7 -7 -5 -5 -5 -5 -4 -4 -4 -4 -4 -4 -3 -3 -3 ------------- Run | Yrd Mat Min Sub Mat Fac Sto Rec Scr Fac Upp Upp War Pro Fac Ext Cet Arc Hub Res Qua Sec Turns Passed 20018 | 45 759 698 2206 1391 613 795 566 1075 2543 636 627 410 656 1115 871 313 152 534 1152 1150 1711 Spaces Moved 26217 | 38 1037 812 3364 1569 501 940 939 1786 3023 1054 995 706 1072 1524 653 288 130 584 1681 1082 2439 Core 2 | 2 . . . . . . . . . . . . . . . . . . . . . Treads . | . . . . . . . . . . . . . . . . . . . . . . Legs 1912 | . . . 117 15 . 13 . 132 462 . . . . . 44 . . 42 157 142 788 Wheels 264 | 36 228 . . . . . . . . . . . . . . . . . . . . Hover . | . . . . . . . . . . . . . . . . . . . . . . Flight 23997 | . 809 812 3247 1554 501 927 939 1654 2561 1054 995 706 1072 1524 609 288 130 542 1524 940 1609 Fastest Speed 21 | 50 34 34 34 59 57 56 56 56 55 54 54 54 54 54 51 51 51 51 51 51 21 Average Speed 53 | 97 48 34 46 63 57 56 56 58 60 54 54 54 54 54 56 51 51 53 54 56 40 Slowest Speed 180 | 100 130 34 90 90 59 114 56 90 90 55 54 54 54 54 122 51 51 90 126 126 180 Overloaded Moves . | . . . . . . . . . . . . . . . . . . . . . . Propulsion Burnouts . | . . . . . . . . . . . . . . . . . . . . . . Robots Hopped 170 | . 4 9 . 14 . 7 11 . 39 . 1 . . 9 12 . 4 9 13 20 18 Cave-ins Triggered . | . . . . . . . . . . . . . . . . . . . . . . Microwarps 3 | . . . . . . . . . . . . . . . . . . . . . 3 Exploration Rate (%) 73 | 3 91 99 92 86 16 95 97 92 39 96 97 91 98 53 74 94 84 48 31 67 79 Regions Visited 21 Branch Regions 15 Pre-discovered Areas 17 | . 2 1 1 2 . 1 9 1 . . . . . . . . . . . . . Known Exits Taken 8 | . . . . . 1 1 . 1 1 . 1 . 1 . . . . 1 1 . . Unknown Exits Taken 13 | 1 1 1 1 1 . . 1 . . 1 . 1 . 1 1 1 1 . . 1 . Scrap Searched 35 | . . 1 17 . . . . 6 . 5 1 . 5 . . . . . . . . Spaces Dug 181 | . . . 133 . 3 . . . 10 . . . . 14 . 13 . 1 . . 7 Terrain Destroyed 473 | . . . 174 6 5 14 1 . 46 6 15 . 6 70 16 18 . 21 5 18 52 Melee 21 | . . . . . 1 . . . 1 . . . . . . 13 . 1 . . 5 Projectile 217 | . . . 3 6 4 14 1 . 31 6 6 . 6 29 16 5 . 20 5 18 47 AOE 235 | . . . 171 . . . . . 14 . 9 . . 41 . . . . . . . Terrain Rammed . | . . . . . . . . . . . . . . . . . . . . . . Walls Destroyed . | . . . . . . . . . . . . . . . . . . . . . . Machines Disabled . | . . . . . . . . . . . . . . . . . . . . . . Actions | -11 -10 -10 -10 -8 -7 -7 -7 -7 -5 -5 -5 -5 -4 -4 -4 -4 -4 -4 -3 -3 -3 --------- Run | Yrd Mat Min Sub Mat Fac Sto Rec Scr Fac Upp Upp War Pro Fac Ext Cet Arc Hub Res Qua Sec Total 30663 | 43 1186 1181 3870 1843 793 1115 955 1816 3569 1094 1061 730 1122 1744 1079 411 205 725 1846 1423 2852 Wait 2344 | . 70 343 388 177 250 74 8 15 323 1 18 2 1 70 172 59 65 9 60 94 145 Move 25834 | 37 1028 793 3363 1540 500 926 918 1785 2946 1053 992 705 1071 1506 630 287 124 566 1657 1043 2364 Hop 153 | . 4 9 . 14 . 6 9 . 37 . 1 . . 8 10 . 1 8 10 18 18 Pick Up 15 | . 1 1 . . . . . 4 . . 2 1 1 1 . . . 1 . 1 2 Fast Attach 62 | 6 2 1 7 5 . 1 . 5 5 . 1 . . . 1 . . 2 6 7 13 Attach 8 | . . . . . . . . . . . . . 1 . . . . 1 . 4 2 Detach 4 | . . . . . . . . . . . . . . . . . . . . 2 2 Swap 58 | . 7 1 5 10 4 10 . 1 2 5 . . 2 4 2 1 . 1 3 . . Drop 46 | . 3 . 5 7 1 2 . 6 3 2 2 1 . 2 1 1 . 1 2 3 4 Fire 1276 | . 50 21 66 65 27 58 9 . 152 21 22 4 25 101 111 35 8 91 47 161 202 Melee 77 | . . . 30 1 1 4 1 . 4 . . . 1 . . 13 . 2 . 1 19 Ram . | . . . . . . . . . . . . . . . . . . . . . . Kick . | . . . . . . . . . . . . . . . . . . . . . . Crush . | . . . . . . . . . . . . . . . . . . . . . . Escape Stasis 72 | . . . . . . 14 . . . . . . . . 17 . . . 28 6 7 Rewire 114 | . . . . . . . . . 3 . . 17 . 1 89 . . 4 . . . Trap . | . . . . . . . . . . . . . . . . . . . . . . Miscellaneous 600 | . 21 12 6 24 10 20 10 . 94 12 23 . 20 51 46 15 7 39 33 83 74 Route ------- -11/Scrapyard -10/Materials (discovered 3 exits: [*Mat x2] / *Min) -10/Mines (discovered 3 exits: [*Mat x2] / *Sub) -10/Subcaves (discovered 3 exits: *Mat x2 / *Rec) -8/Materials (discovered 4 exits: *Fac x3 / Gar) -7/Factory (discovered 4 exits: *Sto x2 / Low x2) -7/Storage (discovered 2 exits: [*Fac] / *Rec) -7/Recycling (discovered 2 exits: *Fac / *Scr) -7/Scraptown (discovered 2 exits: *Fac x2) -5/Factory (discovered 3 exits: *Fac / *Upp x2) -5/Upper Caves (discovered 2 exits: *Upp / *War) -5/Upper Caves (discovered 2 exits: *Fac / *War) -5/Warlord -4/Proximity Caves -4/Factory (discovered 6 exits: *Res x2 / [*Upp] / *Ext x2 / [*Arm]) -4/Extension (discovered 2 exits: *Res / *Cet) -4/Cetus (discovered 3 exits: *Res x2 / *Arc) -4/Archives (discovered 2 exits: *Res / *Hub) -4/Hub_04(d) (discovered 3 exits: *Res x3) -3/Research (discovered 2 exits: [*Res] / *Qua) -3/Quarantine (discovered 2 exits: [*Res] / *Sec) -3/Section 7 (discovered 1 exit: [*Res]) History --------- Turn | Location | Event 1 | -11/Scrapyard | Upgraded with Power slot (x1) 1 | -11/Scrapyard | Upgraded with Propulsion slot (x1) 1 | -11/Scrapyard | Upgraded with Utility slot (x1) 1 | -11/Scrapyard | Upgraded with Weapon slot (x1) 10 | -11/Scrapyard | Discovered new exit (range 16) 46 | -11/Scrapyard | Entered Materials 234 | -10/Materials | Discovered new exit (range 6) 305 | -10/Materials | Build established: Mutant 335 | -10/Materials | Upgraded with Propulsion slot (x1) 370 | -10/Materials | Discovered new exit (range 12) 473 | -10/Materials | Reached level 2 577 | -10/Materials | Discovered new exit (range 15) 629 | -10/Materials | Build established: Scavenger-Mutant 805 | -10/Materials | Entered Mines 807 | -10/Mines | Reached level 3 808 | -10/Mines | Discovered new exit (range 10) 828 | -10/Mines | Discovered new exit (range 11) 830 | -10/Mines | Assembled infested the area 834 | -10/Mines | Learned location of Zion (-7) 886 | -10/Mines | Met a Derelict bent on vengeance 950 | -10/Mines | Received a Rocket Launcher from a helpful Derelict 1386 | -10/Mines | Discovered new exit (range 3) 1416 | -10/Mines | Assisted by bots powering up and referring to "LRC-V3" 1503 | -10/Mines | Entered Subcaves 1503 | -10/Subcaves | Accompanied by 3 allies 1505 | -10/Subcaves | Reached level 4 1618 | -10/Subcaves | Discovered new exit (range 3) 1619 | -10/Subcaves | Shifting Twisted Machinery released Flamer 1619 | -10/Subcaves | Shifting Twisted Machinery released Barrage Gun 1625 | -10/Subcaves | Upgraded with Weapon slot (x1) 1696 | -10/Subcaves | Learned 4 Materials zone layouts 1700 | -10/Subcaves | Visited triangular shrine 1720 | -10/Subcaves | Found Prototype Device 1720 | -10/Subcaves | Identified V3-11A's Pendant 1725 | -10/Subcaves | Befriended Subdweller 1770 | -10/Subcaves | Discovered new exit (range 12) 1810 | -10/Subcaves | Befriended Subdweller 1810 | -10/Subcaves | Befriended Subdweller 1825 | -10/Subcaves | Befriended Subdweller 1830 | -10/Subcaves | Befriended Subdweller 1833 | -10/Subcaves | Discovered new exit (range 7) 1931 | -10/Subcaves | Build established: Scavenger-Gunner 1955 | -10/Subcaves | Befriended Subdweller 1955 | -10/Subcaves | Befriended Subdweller 1999 | -10/Subcaves | Ambushed by Subdweller buried in earth 2000 | -10/Subcaves | Befriended Subdweller 2044 | -10/Subcaves | Shifting Twisted Machinery released Ripper 2048 | -10/Subcaves | Shifting Twisted Machinery released Sub. Power Source 2090 | -10/Subcaves | Ambushed by Subdwellers from Twisted Machinery 2090 | -10/Subcaves | Befriended Subdweller 2095 | -10/Subcaves | Befriended Subdweller 2138 | -10/Subcaves | Reached level 5 2155 | -10/Subcaves | Befriended Subdweller 2177 | -10/Subcaves | Shifting Twisted Machinery released Sub. Laser 2183 | -10/Subcaves | Met a Zionite searching for "candidates" 2230 | -10/Subcaves | Befriended Subdweller 2230 | -10/Subcaves | Befriended Subdweller 2232 | -10/Subcaves | A swath of the cavern ceiling suddenly collapsed 2261 | -10/Subcaves | A swath of the cavern ceiling suddenly collapsed 2444 | -10/Subcaves | Visited 4L-MR0's lab 2450 | -10/Subcaves | Found Prototype Leg 2450 | -10/Subcaves | Identified Arachnoskeleton 2452 | -10/Subcaves | Attached Arachnoskeleton, gained temporary slots: Propulsion x3 2734 | -10/Subcaves | Ambushed by Subdweller buried in earth 2734 | -10/Subcaves | Ambushed by Subdweller buried in earth 2735 | -10/Subcaves | Befriended Subdweller 2735 | -10/Subcaves | Befriended Subdweller 2938 | -10/Subcaves | Ambushed by Subdweller buried in earth 2940 | -10/Subcaves | Befriended Subdweller 2967 | -10/Subcaves | Visited Clippyterm 3452 | -10/Subcaves | Build established: Scavenger-Mutant 3709 | -10/Subcaves | Entered Materials 3709 | -8/Materials | Accompanied by 16 allies 3711 | -8/Materials | Reached level 6 3743 | -8/Materials | Reached level 7 3772 | -8/Materials | Lost 3 allies 3851 | -8/Materials | Discovered new exit (range 9) 3939 | -8/Materials | Identified exit to Garrison 4018 | -8/Materials | Reached level 8 4061 | -8/Materials | Discovered new exit (range 8) 4145 | -8/Materials | Discovered new exit (range 12) 4180 | -8/Materials | Reached level 9 4356 | -8/Materials | Upgraded with Utility slot (x1) 4360 | -8/Materials | Upgraded with Utility slot (x1) 4459 | -8/Materials | Build established: Mutant 4584 | -8/Materials | Reached level 10 4692 | -8/Materials | Upgraded with Propulsion slot (x1) 5100 | -8/Materials | Entered Factory 5100 | -7/Factory | Accompanied by 5 allies 5102 | -7/Factory | Reached level 11 5246 | -7/Factory | Reached level 12 5261 | -7/Factory | Garrison activated, responded to threat 5304 | -7/Factory | Lost 3 allies 5368 | -7/Factory | Identified exit to Storage 5368 | -7/Factory | Identified exit to Lower Caves 5661 | -7/Factory | Build established: Wizard-Mutant 5713 | -7/Factory | Entered Storage 5714 | -7/Storage | Identified exit to Recycling 5715 | -7/Storage | Reached level 13 5763 | -7/Storage | Upgraded with Utility slot (x1) 5865 | -7/Storage | Reached level 14 5872 | -7/Storage | Used back door to open Recycling access 5930 | -7/Storage | Garrison activated, responded to threat 5975 | -7/Storage | Discovered new exit (range 16) 6255 | -7/Storage | Reached level 15 6508 | -7/Storage | Entered Recycling 6589 | -7/Recycling | Discovered new exit (range 5) 6608 | -7/Recycling | Identified exit to Factory 6649 | -7/Recycling | Reached level 16 6705 | -7/Recycling | Scanned before Scraplab entrance 6713 | -7/Recycling | Entered Scraplab 6999 | -7/Recycling | Discovered new exit (range 2) 7074 | -7/Recycling | Entered Scraptown 7092 | -7/Scraptown | Heard Great Nut preacher, LISTEN AND RECITE! 7127 | -7/Scraptown | Delivered V3-11A's Pendant to T0-NE2 in exchange for information 7229 | -7/Scraptown | Discovered exit to Factory (range 5) 7277 | -7/Scraptown | Visited Awakened 7297 | -7/Scraptown | Visited Red Mages 7318 | -7/Scraptown | Visited TADAMA 7375 | -7/Scraptown | Visited Cave Peace 7431 | -7/Scraptown | Visited Fellowship of the Rings 7458 | -7/Scraptown | Visited SPCMW 7586 | -7/Scraptown | Visited UFD Registry 7586 | -7/Scraptown | Registered with UFD as "Deathgunner" 7604 | -7/Scraptown | Visited Modified Component R&D 7611 | -7/Scraptown | Upgraded with Utility slot (x1) 7649 | -7/Scraptown | Visited Scrapoid Pod Storage 7661 | -7/Scraptown | Visited Chapter 10 7680 | -7/Scraptown | Visited DA-N13 Charitable Foundation 7682 | -7/Scraptown | Found DCF Scrap (28 items) 7710 | -7/Scraptown | Visited Research Penetration Think Tank 7745 | -7/Scraptown | Visited Observation Area 7796 | -7/Scraptown | Upgraded with Weapon slot (x1) 7837 | -7/Scraptown | Visited Scrap Suit Storage 7857 | -7/Scraptown | Visited A0-MCA Data Center 7861 | -7/Scraptown | Given an A+ rating by A0-MCA 7864 | -7/Scraptown | Found A0-MCA's Component Scanner 7876 | -7/Scraptown | Visited Curators Association 8028 | -7/Scraptown | Found Scrap Suit 8087 | -7/Scraptown | Build established: Wizard-Gunner 8146 | -7/Scraptown | Discovered exit to Factory (range 3) 8149 | -7/Scraptown | Entered Factory 8151 | -5/Factory | Reached level 17 8630 | -5/Factory | Fabricated H-66 Slayer? 8651 | -5/Factory | Reached level 18 8654 | -5/Factory | Garrison activated, responded to threat 8929 | -5/Factory | Discovered new exit (range 3) 8993 | -5/Factory | Build established: Wizard-Gladiator 9107 | -5/Factory | Cargo convoy interrupted 9358 | -5/Factory | Reached level 19 9649 | -5/Factory | First assault squad dispatched 9693 | -5/Factory | Identified exit to Upper Caves 9824 | -5/Factory | Reached level 20 10072 | -5/Factory | Upgraded with Propulsion slot (x1) 10339 | -5/Factory | Reached level 21 10439 | -5/Factory | Core integrity fell below 50% 10486 | -5/Factory | Spotted B-75 Beast 10513 | -5/Factory | Discovered new exit (range 20) 10656 | -5/Factory | Upgraded with Utility slot (x1) 10692 | -5/Factory | Entered Upper Caves 10755 | -5/Upper Caves | Found DCF Scrap (10 items) 10831 | -5/Upper Caves | A Derelict revealed a hidden shortcut to "reach the base" 10852 | -5/Upper Caves | Encountered a Warlord checkpoint 10858 | -5/Upper Caves | Learned Factory emergency access door positions 10914 | -5/Upper Caves | Discovered new exit (range 8) 11115 | -5/Upper Caves | Attracted the attention of an 0b10 checkpoint 11328 | -5/Upper Caves | Entered another Upper Caves area 11330 | -5/Upper Caves | Reached level 22 11400 | -5/Upper Caves | Prototype Device suddenly appears! 11402 | -5/Upper Caves | Found Amulet of Y3-NDR 11410 | -5/Upper Caves | Identified exit to Warlord 11411 | -5/Upper Caves | Encountered a Warlord checkpoint 11433 | -5/Upper Caves | Attracted the attention of an 0b10 checkpoint 11474 | -5/Upper Caves | Joined by bewildered Wizard 11476 | -5/Upper Caves | Joined by bewildered Wizard 11572 | -5/Upper Caves | Joined by bewildered Wizard 11572 | -5/Upper Caves | Joined by bewildered Wizard 11591 | -5/Upper Caves | Joined by bewildered Wizard 11591 | -5/Upper Caves | Joined by bewildered Wizard 11623 | -5/Upper Caves | Attracted the attention of an 0b10 base 11623 | -5/Upper Caves | Destroyed 7 combat bots 11647 | -5/Upper Caves | Identified exit to Factory 11647 | -5/Upper Caves | Learned location of 1 exit from Upper Caves 11647 | -5/Upper Caves | Learned location of 1 exit from Factory 11647 | -5/Upper Caves | Learned Armory stockpile data 11671 | -5/Upper Caves | Learned Factory terminal intel 11689 | -5/Upper Caves | Joined by bewildered Wizard 11955 | -5/Upper Caves | Entered Warlord 11955 | -5/Warlord | Accompanied by 4 allies 11979 | -5/Warlord | Discovered new exit (range 9) 11999 | -5/Warlord | System corruption cleaned by Quarantine Array 12225 | -5/Warlord | Visited the Vortex Lab 12244 | -5/Warlord | Warlord's base attacked by MAIN.C 12268 | -5/Warlord | Rebuked by Warlord 12331 | -5/Warlord | Opened side exit 12356 | -5/Warlord | Reached level 23 12365 | -5/Warlord | Entered Proximity Caves 12367 | -4/Proximity Caves | Attracted the attention of an 0b10 checkpoint 12387 | -4/Proximity Caves | Lost 4 allies 12391 | -4/Proximity Caves | Joined by bewildered Wizard 12391 | -4/Proximity Caves | Joined by bewildered Wizard 12392 | -4/Proximity Caves | Joined by bewildered Wizard 12451 | -4/Proximity Caves | Joined by bewildered Wizard 12464 | -4/Proximity Caves | Attracted the attention of an 0b10 base 12472 | -4/Proximity Caves | Reached level 24 12504 | -4/Proximity Caves | Lost 4 allies 12635 | -4/Proximity Caves | Joined by bewildered Wizard 12635 | -4/Proximity Caves | Joined by bewildered Wizard 12723 | -4/Proximity Caves | Upgraded with Utility slot (x1) 12737 | -4/Proximity Caves | Spotted B-86 Titan 12746 | -4/Proximity Caves | Allies destroyed B-86 Titan 12830 | -4/Proximity Caves | Discovered exit to Factory (range 8) 13021 | -4/Proximity Caves | Entered Factory 13021 | -4/Factory | Accompanied by 2 allies 13022 | -4/Factory | Identified exit to Research 13025 | -4/Factory | Loaded intel: 27 terminal locations 13036 | -4/Factory | Spotted B-86 Titan 13070 | -4/Factory | Joined by bewildered Wizard 13070 | -4/Factory | Joined by bewildered Wizard 13071 | -4/Factory | Joined by bewildered Wizard 13079 | -4/Factory | Allies destroyed B-86 Titan 13103 | -4/Factory | Joined by bewildered Wizard 13200 | -4/Factory | Local machine network offline 13200 | -4/Factory | Reached level 25 13208 | -4/Factory | Fabricated Ragnarok Missile Launcher (x1) 13275 | -4/Factory | Joined by bewildered Wizard 13314 | -4/Factory | Discovered new exit (range 8) 13332 | -4/Factory | Joined by bewildered Wizard 13484 | -4/Factory | Joined by bewildered Wizard 13531 | -4/Factory | Discovered new exit (range 17) 13597 | -4/Factory | Joined by bewildered Wizard 13598 | -4/Factory | Joined by bewildered Wizard 13667 | -4/Factory | Joined by bewildered Wizard 13674 | -4/Factory | Garrison activated, responded to threat 13719 | -4/Factory | Build established: Wizard-Gunner 13738 | -4/Factory | Reached level 26 13760 | -4/Factory | Garrison activated, responded to threat 13819 | -4/Factory | Discovered new exit (range 15) 13921 | -4/Factory | Lost 5 allies 13940 | -4/Factory | Destroyed 12 combat bots 13963 | -4/Factory | Spotted B-86 Titan 14126 | -4/Factory | Discovered new exit (range 19) 14136 | -4/Factory | Entered Extension 14176 | -4/Extension | Rescued a captive Derelict 14177 | -4/Extension | Rescued a captive Derelict 14249 | -4/Extension | Rescued A7 14304 | -4/Extension | Rescued a captive Derelict 14312 | -4/Extension | Rescued a captive Derelict 14322 | -4/Extension | Reached level 27 14386 | -4/Extension | First assault squad dispatched 14419 | -4/Extension | Rescued a captive Derelict 14421 | -4/Extension | Rescued a captive Derelict 14428 | -4/Extension | Spotted B-86 Titan 14566 | -4/Extension | Destroyed 7 combat bots 14573 | -4/Extension | Destroyed B-86 Titan 14576 | -4/Extension | Spotted B-86 Titan 14592 | -4/Extension | Destroyed B-86 Titan 14623 | -4/Extension | Core integrity fell below 50% 14674 | -4/Extension | Local machine network offline 14815 | -4/Extension | Rescued a captive Derelict 14817 | -4/Extension | Rescued a captive Derelict 14822 | -4/Extension | Upgraded with Propulsion slot (x1) 14866 | -4/Extension | Rescued a captive Derelict 14875 | -4/Extension | Discovered exit to Research (range 10) 14875 | -4/Extension | Discovered new exit (range 6) 15002 | -4/Extension | Build established: Commander-Gunner 15007 | -4/Extension | Entered Cetus 15007 | -4/Cetus | Accompanied by 28 allies (A7) 15012 | -4/Cetus | Acquired a Cetus Manufacturing Module code from A7 15012 | -4/Cetus | Spotted Cetus Guard 15012 | -4/Cetus | Spotted Cetus Guard 15014 | -4/Cetus | Spotted Cetus Guard 15018 | -4/Cetus | Spotted Cetus Guard 15025 | -4/Cetus | Destroyed Cetus Guard 15027 | -4/Cetus | Allies destroyed Cetus Guard 15029 | -4/Cetus | Destroyed Cetus Guard 15033 | -4/Cetus | Destroyed Cetus Guard 15062 | -4/Cetus | Lost 3 allies 15063 | -4/Cetus | Discovered exit to Research (range 20) 15120 | -4/Cetus | Started Cetus Manufacturing Module 15138 | -4/Cetus | Escorted A7 to Cetus Mainframe 15142 | -4/Cetus | Discovered new exit (range 19) 15145 | -4/Cetus | Manufactured an Enhanced Grunt 15155 | -4/Cetus | Spotted Cetus Guard 15155 | -4/Cetus | Spotted Cetus Guard 15157 | -4/Cetus | Spotted Cetus Guard 15170 | -4/Cetus | Manufactured an Enhanced Grunt 15170 | -4/Cetus | Destroyed Cetus Guard 15175 | -4/Cetus | Spotted Cetus Guard 15177 | -4/Cetus | Destroyed Cetus Guard 15185 | -4/Cetus | Destroyed Cetus Guard 15188 | -4/Cetus | Discovered exit to Research (range 20) 15191 | -4/Cetus | Allies destroyed Cetus Guard 15195 | -4/Cetus | Manufactured an Enhanced Grunt 15195 | -4/Cetus | Met Revision 17 15220 | -4/Cetus | Manufactured an Enhanced Grunt 15245 | -4/Cetus | Manufactured an Enhanced Grunt 15320 | -4/Cetus | Entered Archives 15320 | -4/Archives | Accompanied by 30 allies (A7) 15337 | -4/Archives | Received a hacking code to weaken MAIN.C 15346 | -4/Archives | Discovered exit to Research (range 15) 15358 | -4/Archives | Discovered new exit (range 18) 15383 | -4/Archives | Unable to access archive contents 15472 | -4/Archives | Entered Hub_04(d) 15472 | -4/Hub_04(d) | Accompanied by 28 allies 15474 | -4/Hub_04(d) | Reached level 28 15477 | -4/Hub_04(d) | Discovered exit to Research (range 15) 15538 | -4/Hub_04(d) | Local machine network offline 15585 | -4/Hub_04(d) | Network Hub disabled 15636 | -4/Hub_04(d) | Spotted Lightning 15637 | -4/Hub_04(d) | Spotted Lightning 15641 | -4/Hub_04(d) | Allies destroyed Lightning 15647 | -4/Hub_04(d) | Allies destroyed Lightning 15655 | -4/Hub_04(d) | Found Exp. EM Disruption Field 15659 | -4/Hub_04(d) | Spotted Lightning 15663 | -4/Hub_04(d) | Allies destroyed Lightning 15669 | -4/Hub_04(d) | Discovered exit to Research (range 10) 15692 | -4/Hub_04(d) | Lost 12 allies 15722 | -4/Hub_04(d) | First assault squad dispatched 15853 | -4/Hub_04(d) | Discovered exit to Research (range 5) 15872 | -4/Hub_04(d) | Lost 11 allies 15892 | -4/Hub_04(d) | P-70 Sage assimilated allied Y-64 Sentinel 15945 | -4/Hub_04(d) | Spotted Lightning 15950 | -4/Hub_04(d) | Spotted Lightning 15951 | -4/Hub_04(d) | Spotted Lightning 15958 | -4/Hub_04(d) | Build established: Wizard-Gunner 15958 | -4/Hub_04(d) | Destroyed Lightning 15977 | -4/Hub_04(d) | Destroyed Lightning 16006 | -4/Hub_04(d) | Entered Research 16007 | -3/Research | Identified exit to Quarantine 16008 | -3/Research | Reached level 29 16012 | -3/Research | Spotted B-86 Titan 16048 | -3/Research | Joined by bewildered Wizard 16048 | -3/Research | Joined by bewildered Wizard 16048 | -3/Research | Joined by bewildered Wizard 16065 | -3/Research | Joined by bewildered Wizard 16206 | -3/Research | Revision forces began assault on 0b10 16274 | -3/Research | Discovered new exit (range 16) 16312 | -3/Research | Joined by bewildered Wizard 16319 | -3/Research | Met up with Revision 17++ 16364 | -3/Research | Spotted B-90 Cyclops 16365 | -3/Research | Destroyed B-90 Cyclops 16495 | -3/Research | Joined by bewildered Wizard 16706 | -3/Research | Research terminal network offline 16827 | -3/Research | Spotted Executioner 16827 | -3/Research | Spotted Striker 16830 | -3/Research | Allies destroyed Executioner 16840 | -3/Research | Allies destroyed Striker 16995 | -3/Research | Lost 3 allies 17042 | -3/Research | Spotted Striker 17051 | -3/Research | Destroyed Striker 17158 | -3/Research | Entered Quarantine 17160 | -3/Quarantine | Reached level 30 17186 | -3/Quarantine | Garrison activated, responded to threat 17356 | -3/Quarantine | Scanned by Researcher 17448 | -3/Quarantine | First assault squad dispatched 17453 | -3/Quarantine | Found Alien Artifact 17453 | -3/Quarantine | Identified Terrabomb 17453 | -3/Quarantine | Used Terrabomb 17456 | -3/Quarantine | Discovered new exit (range 17) 17488 | -3/Quarantine | Core integrity fell below 50% 17515 | -3/Quarantine | Garrison activated, responded to threat 17566 | -3/Quarantine | Destroyed 7 combat bots 17567 | -3/Quarantine | Found Alien Artifact 17567 | -3/Quarantine | Identified Core Reset Matrix 17567 | -3/Quarantine | Used Core Reset Matrix 17571 | -3/Quarantine | Detected hypermatrix surge 17571 | -3/Quarantine | Sensed 13 artifacts in vicinity 17616 | -3/Quarantine | Core integrity fell below 20% 17778 | -3/Quarantine | Build established: Wizard-Mutant 17797 | -3/Quarantine | Discovered new exit (range 6) 17850 | -3/Quarantine | Reached level 31 17960 | -3/Quarantine | Destroyed 7 combat bots 18102 | -3/Quarantine | Found Sigix Broadsword 18151 | -3/Quarantine | Spotted Fortress 18277 | -3/Quarantine | Discovered new exit (range 6) 18308 | -3/Quarantine | Entered Section 7 18309 | -3/Section 7 | Sensed 19 artifacts in vicinity 18334 | -3/Section 7 | Found Integrated Dissipator 18334 | -3/Section 7 | Installed Integrated Dissipator, increased core heat dissipation (+20) 18583 | -3/Section 7 | Build established: Wizard-Gladiator 18756 | -3/Section 7 | Found Microwarp Drive 18812 | -3/Section 7 | Discovered new exit (range 18) 19051 | -3/Section 7 | Spotted Alpha 7 19088 | -3/Section 7 | First assault squad dispatched 19198 | -3/Section 7 | Destroyed 11 combat bots 19252 | -3/Section 7 | Spotted S7 Guard 19294 | -3/Section 7 | Found Integrated Thermoelectric Network 19294 | -3/Section 7 | Installed Integrated Thermoelectric Network, gained heat-energy exchange potential 19325 | -3/Section 7 | Destroyed S7 Guard 19330 | -3/Section 7 | Spotted Alpha 7 19331 | -3/Section 7 | Found Hvy. Regenerative Plating 19339 | -3/Section 7 | Destroyed Alpha 7 19365 | -3/Section 7 | Destroyed Alpha 7 19434 | -3/Section 7 | Spotted B-99 Colossus 19453 | -3/Section 7 | Found Integrated Dissipator 19453 | -3/Section 7 | Installed Integrated Dissipator, increased core heat dissipation (+20) 19454 | -3/Section 7 | Found Integrated Dissipator 19454 | -3/Section 7 | Installed Integrated Dissipator, increased core heat dissipation (+20) 19479 | -3/Section 7 | Found LRC Matter Compressor 19479 | -3/Section 7 | Installed LRC Matter Compressor, increased matter storage capacity (+125) 19481 | -3/Section 7 | Found LRC Storage 19481 | -3/Section 7 | Installed LRC Storage, increased inventory capacity (+2) 19483 | -3/Section 7 | Found LRC Insulator 19483 | -3/Section 7 | Installed LRC Insulator, gained EM resistance (25) 19523 | -3/Section 7 | Integrated with Sigix Exoskeleton 19540 | -3/Section 7 | Spotted Executioner 19540 | -3/Section 7 | Spotted Executioner 19545 | -3/Section 7 | Spotted Striker 19546 | -3/Section 7 | Spotted Striker 19581 | -3/Section 7 | Found Sigix Sheargun 19587 | -3/Section 7 | Spotted Striker 19587 | -3/Section 7 | Spotted Striker 19606 | -3/Section 7 | Destroyed Striker 19606 | -3/Section 7 | Destroyed Executioner 19611 | -3/Section 7 | Destroyed Striker 19618 | -3/Section 7 | Destroyed Executioner 19628 | -3/Section 7 | Destroyed Striker 19630 | -3/Section 7 | Destroyed Striker 19677 | -3/Section 7 | Reached level 32 19714 | -3/Section 7 | Upgraded with Weapon slot (x1) 19753 | -3/Section 7 | Destroyed 26 combat bots 19827 | -3/Section 7 | Destroyed Investigator 19832 | -3/Section 7 | Build established: Alien-Sigix 19879 | -3/Section 7 | Destroyed 26 combat bots 19916 | -3/Section 7 | Spotted Executioner 19916 | -3/Section 7 | Spotted Executioner 20006 | -3/Section 7 | Spotted Investigator 20006 | -3/Section 7 | Scanned by Researcher 20007 | -3/Section 7 | Intercept squad dispatched 20007 | -3/Section 7 | Spotted Tracker 20008 | -3/Section 7 | Spotted Tracker 20008 | -3/Section 7 | Destroyed Investigator 20009 | -3/Section 7 | Spotted Combat Programmer 20011 | -3/Section 7 | Spotted Combat Programmer 20014 | -3/Section 7 | Spotted Striker 20014 | -3/Section 7 | Spotted Investigator 20015 | -3/Section 7 | Spotted Executioner 20019 | -3/Section 7 | Destroyed by Tracker with Linked Autogun Last Messages --------------- payload. 20017_ G-73 Enforcer unfolds itself. 20017_ L-61 Swordsman unfolds itself. 20017_ G-67 Veteran unfolds itself. 20017_ L-61 Swordsman unfolds itself. 20017_ P-80 Master stasis bubble strength at 172. 20017_ M-36 Artificer stasis bubble strength at 170. 20017_ M-36 Artificer repairs Mic. Antimatter Reactor. 20018_ Stasis bubble strength at 48. 20018_ P-80 Master stasis bubble strength at 165. 20018_ Combat Programmer resets G-73 Enforcer, system corruption cleaned. 20018_ M-36 Artificer stasis bubble strength at 160. 20019_ Held in stasis. 20019_ Stasis bubble strength at 10. Map ----- +----------------------------------------------------+ | #???????# ** ##### ] ???# !! | | #???????# ** ######## ???+ !] | | ######### """ ########"" ??# ! | | " " ########"T !?+ | | """ =!= #"" ?# | | ==! %% # ! ?# | | !=%% %p % % ######## """" | | ##+######################%[ " " ######## """" | | ????????#################hh"""h""" ######## """" | | ????????################# h"""h""" ######## | | ????????####### ######### """ """ ######## """" | | ???????### ########ppp""g""" ######## """" | | ????????## ########sp"""g""" ######## """" | | ????????## ########ps""" """ ######## | | ????????## = ######## " g " ######## """" | | ????????## ######## cm # # """" | | ???????###]]= ######## l # # """" | | ???????###]= ######## !%# + | | ??????####]= %#[%% !!!%+%""" # "" | | ????? #### /=+% [ =!!%%# """ # "T | | ????? ####"" """%# % *%===# """ # "" | | ?????#####"" """ # pm%*%[!######## | | ????######"" """ # ####+########## | | ????######T """ # !e #%**!= % ### ## | | ????######"" """ # "" "/% !#!*[! "### ## | | ????######"" """ # ""T Xe !+* %""%""" T### ## | | ???#######"" """ + g [#![![" " " "### ## | | ???####### # *=!gp# =""" """ ### ## | | ??################ ippgg%# ### ## | | ?####################p###]p;## = ### ## | | ?############### hCe mh##########+###### ## | | ?############### h #h########## ###### ## | | ################ #g########## h | | ################ #g% e % | | #####################h####m### ###### | | ################# YllY # ###### | | ################# h # ############# ## | | ################# E # #### # # | | ######"""S"""#### CYY" "### """ # # | | ######""" """#### C # " """ + + | | # """""" |!+ # # # | | """"" """"" # " "[C!# + # # | | """"" """"" # " """ "!= " " # # | | """"" """"" # " "!" " # " # # | | # " """ " # #"""#+#### # | | """"" """"" # " " # ##### #### # | | """"" """"" # " =%= ## | | """"" """"" ###########/## ! ## | | % ########### ## "" """ ## | | ########+################## ## """ """ ## | +----------------------------------------------------+ Best States ------------- Heat Dissipation 233 Energy Generation 67 Energy Capacity 525 Matter Stores 425 Matter Capacity 425 Sight Range 20 Terrain Scan Density 10 Armor Coverage 600 Resistance: KI 70 Resistance: TH 70 Resistance: EX 70 Resistance: EM 95 Resistance: I 70 Resistance: S 70 Resistance: P 70 Weapon Cycling 30 Evasion (%) 69 Salvage Targeting 1 Offensive Hacking 40 Defensive Hacking 20 Item Schematics ----------------- Plasma Sword | -3/Quarantine | Archive Exp. Melee Analysis Suite | -3/Quarantine | Archive Diametric Drive | -3/Quarantine | Archive Hvy. Dispersion Rifle | -3/Quarantine | Archive Exp. Hacking Suite | -3/Quarantine | Archive Spectral Analyzer | -3/Quarantine | Archive Adv. Remote Shield | -3/Section 7 | Archive Gravity Flail | -3/Section 7 | Archive Cld. Phase Cannon | -3/Section 7 | Archive Hvy. Wave Gun | -3/Section 7 | Archive Adv. Energy Well | -3/Section 7 | Archive Hvy. Hardcell Cannon | -3/Section 7 | Archive Imp. Lightning Gun | -3/Section 7 | Archive Adv. Plasma Rifle | -3/Section 7 | Archive Imp. Matter Neutralizer | -3/Section 7 | Archive Prc. Phase Gun | -3/Section 7 | Archive Hellfire Missile Launcher | -3/Section 7 | Archive Imp. Energy Well | -3/Section 7 | Archive Centrium Medium Armor Plating | -3/Section 7 | Archive Exp. Targeting Computer | -3/Section 7 | Archive Centrium Greatsword | -3/Section 7 | Archive Hvy. Proton Cannon | -3/Section 7 | Archive Exp. Myomer Leg | -3/Section 7 | Archive Robot Schematics ------------------ O-32 Director | -3/Section 7 | Archive Y-72 Warden | -3/Section 7 | Archive E-15 Imp | -3/Section 7 | Archive B-74 Champion | -3/Section 7 | Archive Fabricated ------------ H-66 Slayer | x2 | -5/Factory | Preloaded Ragnarok Missile Launcher | x1 | -4/Factory | Preloaded Alien Tech Used ----------------- Terrabomb Core Reset Matrix Sigix Broadsword Integrated Dissipator Microwarp Drive Integrated Thermoelectric Network LRC Matter Compressor LRC Storage LRC Insulator Sigix Exoskeleton Sigix Sheargun Achievements -------------- None Challenges ------------ None RPGLIKE | -11 -10 -10 -10 -8 -7 -7 -7 -7 -5 -5 -5 -5 -4 -4 -4 -4 -4 -4 -3 -3 -3 --------- Run | Yrd Mat Min Sub Mat Fac Sto Rec Scr Fac Upp Upp War Pro Fac Ext Cet Arc Hub Res Qua Sec Levels Raised 31 | . 1 1 2 5 2 3 1 . 5 . 1 1 1 2 1 . . 1 1 2 1 XP Earned 50988 | 4000 2802 1395 2007 8482 2774 4029 1241 220 7666 820 1036 535 1949 3653 1161 377 192 1255 1890 1714 1790 XP Spent 50335 | 2000 1150 500 1400 7700 6800 1400 . 5500 7400 . 1250 . 2300 . 4700 . . 550 . 6285 1400 Upgrades 92 | 4 3 1 2 18 10 1 . 7 8 . 1 . 1 . 10 . . 2 . 23 1 Power Slot 1 | 1 . . . . . . . . . . . . . . . . . . . . . Propulsion Slot 5 | 1 1 . . 1 . . . . 1 . . . . . 1 . . . . . . Utility Slot 7 | 1 . . . 2 . 1 . 1 1 . . . 1 . . . . . . . . Weapon Slot 4 | 1 . . 1 . . . . 1 . . . . . . . . . . . . 1 Core Integrity 17 | . . . . . . . . . . . . . . . . . . . . 17 . Heat Dissipation 11 | . . . . 10 . . . 1 . . . . . . . . . . . . . Energy Generation 3 | . . . . . . . . . . . . . . . 3 . . . . . . Mass Support 4 | . 1 . 1 1 . . . . 1 . . . . . . . . . . . . Inventory Capacity 5 | . 1 1 . . . . . 2 . . 1 . . . . . . . . . . Sight Range 4 | . . . . . . . . . 4 . . . . . . . . . . . . Ranged Accuracy 5 | . . . . 4 . . . . . . . . . . . . . . . 1 . Hack Attack % 6 | . . . . . 6 . . . . . . . . . . . . . . . . Hack Defense % 4 | . . . . . 4 . . . . . . . . . . . . . . . . KI Resistance % 4 | . . . . . . . . . . . . . . . 2 . . . . 2 . TH Resistance % 4 | . . . . . . . . . . . . . . . 2 . . . . 2 . EX Resistance % 4 | . . . . . . . . . . . . . . . 2 . . 2 . . . TH Damage % 4 | . . . . . . . . 2 1 . . . . . . . . . . 1 . Protomatter Created 9575 | . 201 165 60 385 145 498 124 . 1221 196 260 . 236 829 478 181 91 657 564 1055 2229 Integrity Restored 12140 | . 404 170 90 396 209 306 173 . 1909 253 474 . 421 966 987 295 142 761 679 1828 1677 Core 9366 | . 290 125 73 303 153 228 121 . 1484 250 198 . 312 672 747 231 58 543 464 1437 1677 Parts 2774 | . 114 45 17 93 56 78 52 . 425 3 276 . 109 294 240 64 84 218 215 391 . Protomatter Decayed 9355 | . 60 136 88 505 72 446 61 . 465 111 114 38 349 936 289 144 39 1871 2974 385 272 Game ------ Seed RelayCryofiberArticulator Manual? 0 Play Time 06:16:41 Cumulative 139.6 hours Start 2024.10.06 @ 07:44:23 End 2024.10.08 @ 12:07:20 Sessions 9 Manual Loads 0 Difficulty Adventurer Special Mode Winter2019/RPGLIKE Game No. 78 Rogue 0 Adventurer 78 Explorer 0 Win Type - Total 6 Types 2/0/2/2/0/0/0/0/0 Lore% 63 Gallery% 58 Achievement% 71 Wizard Run 0 Options --------- Layout 2 ASCII 0 Keyboard 0 Movement Numpad Keybinds 0 Fullscreen 2 Font 24/Smallcaps Map View 50x44 Zoom Use 0% Tactical HUD 1 Map Filters NONE Filters NONE Steam 1 RUN: 8726642d-6326-457b-b684-44219e0966b6